fUST/lending_fUST_20260419
["ID","MTS","AMOUNT","RATE_DAILY","PERIOD"]
[420805753,1776535838306,-300.0,7.822e-05,2]
[420805754,1776535838315,-300.0,7.823e-05,2]
[420805755,1776535838325,-300.0,7.823e-05,2]
[420805756,1776535838334,-300.0,7.823e-05,2]
[420805757,1776535838343,-300.0,7.823e-05,2]
[420805758,1776535838353,-300.0,7.823e-05,2]
[420805759,1776535838362,-14.28091159,7.823e-05,2]
[420805760,1776535838373,-285.71908841,7.823e-05,2]
[420805761,1776535838382,-40.08118498,7.823e-05,2]
[420805762,1776535838415,-259.91881502,7.823e-05,2]
[420805763,1776535838424,-300.0,7.823e-05,2]
[420805764,1776535838433,-300.0,7.823e-05,2]
[420805765,1776535838443,-300.0,7.823e-05,2]
[420805766,1776535838452,-300.0,7.823e-05,2]
[420805767,1776535838461,-300.0,7.823e-05,2]
[420805768,1776535838471,-300.0,7.823e-05,2]
[420805769,1776535838480,-300.0,7.823e-05,2]
[420805770,1776535838490,-300.0,7.823e-05,2]
[420805771,1776535838500,-7021.77317858,7.823e-05,2]
[420805772,1776535838509,-600.0,7.978e-05,2]
[420805773,1776535838518,-3160.0345643,8.575e-05,2]
[420805774,1776535838528,-720.0,8.776e-05,2]
[420805775,1776535838537,-242.81342432,8.968e-05,2]
[420805776,1776535838547,-280.47292495,9.404e-05,5]
[420805777,1776535838556,-864.0,9.654e-05,2]
[420805778,1776535838565,-151.0,0.00010168,2]
[420805779,1776535838575,-151.0,0.00010168,2]
[420805780,1776535838584,-151.0,0.00010168,2]
[420805781,1776535838594,-151.0,0.00010168,2]
[420805782,1776535838603,-151.0,0.00010168,2]
[420805783,1776535838612,-151.0,0.00010168,2]
[420805784,1776535838622,-151.0,0.00010168,2]
[420805785,1776535838631,-151.0,0.00010168,2]
[420805786,1776535838641,-151.0,0.00010168,2]
[420805787,1776535838651,-151.0,0.00010168,2]
[420805788,1776535838660,-151.0,0.00010168,2]
[420805789,1776535838669,-151.0,0.00010168,2]
[420805790,1776535838678,-151.0,0.00010168,2]
[420805791,1776535838687,-151.0,0.00010168,2]
[420805792,1776535838696,-151.0,0.00010168,2]
[420805793,1776535838705,-151.0,0.00010168,2]
[420805794,1776535838715,-2150.738,0.00010168,2]
[420805795,1776535838724,-151.0,0.00010168,2]
[420805796,1776535838734,-151.0,0.00010168,2]
[420805797,1776535838743,-151.0,0.00010168,2]
[420805798,1776535838753,-151.0,0.00010168,2]
[420805799,1776535838762,-1000.0,0.00010619,2]
[420805800,1776535838771,-2312.83697232,0.00010716,2]
[420805801,1776535838781,-1678.97551625,0.00010909,2]
[420805802,1776535838790,-150.0,0.0001096,2]
[420805803,1776535838799,-279.85276023,0.00010968,2]
[420805804,1776535838809,-500.0,0.00010986,2]
[420805805,1776535838818,-500.0,0.00010986,2]
[420805806,1776535838828,-500.0,0.00010986,2]
[420805807,1776535838838,-500.0,0.00010986,2]
[420805808,1776535838847,-500.0,0.00010986,2]
[420805809,1776535838857,-501.69342998,0.00010986,2]
[420805810,1776535838866,-500.0,0.00011176,2]
[420805811,1776535838875,-150.0,0.00011353,2]
[420805812,1776535838884,-150.0,0.00011391,2]
[420805813,1776535838894,-150.0,0.00011391,2]
[420805814,1776535838904,-150.748,0.00011391,2]
[420805815,1776535838913,-441.0,0.00011408,2]
[420805816,1776535838922,-184.0,0.00011408,2]
[420805817,1776535838932,-297.0,0.00011507,3]
[420805818,1776535838942,-435.24451647,0.00011534,2]
[420805819,1776535838952,-500.0,0.00011534,2]
[420805820,1776535838962,-1000.0,0.00011534,2]
[420805821,1776535838971,-500.0,0.00011534,2]
[420805822,1776535838980,-500.0,0.00011534,2]
[420805823,1776535838990,-500.0,0.00011592,2]
[420805824,1776535838999,-150.0,0.00011653,2]
[420805825,1776535839008,-590.8229903,0.00011673,2]
[420805826,1776535839018,-500.0,0.00011673,2]
[420805827,1776535839027,-1000.0,0.00011681,2]
[420805828,1776535839037,-244.0,0.00011681,2]
[420805829,1776535839048,-335.83004427,0.00011724,2]
[420805830,1776535839057,-575.28888299,0.00011785,2]
[420805831,1776535839067,-294.69975303,0.00011785,2]
[420805832,1776535839076,-500.0,0.00011803,2]
[420805833,1776535839086,-469.55391544,0.00011846,2]
[420805834,1776535839095,-500.0,0.00011846,2]
[420805835,1776535839104,-500.0,0.00011846,2]
[420805836,1776535839113,-500.0,0.00011846,2]
[420805837,1776535839123,-284.89841372,0.00011846,2]
[420805838,1776535839132,-22055.82691265,0.00011847,2]
[420805839,1776535839141,-150.0,0.00011953,2]
[420805840,1776535839152,-277.4327544,0.00012016,2]
[420805841,1776535839161,-151.0,0.00012078,2]
[420805842,1776535839171,-746.64335229,0.00012082,2]
[420805843,1776535839183,-753.35664771,0.00012082,2]
[420805844,1776535839192,-500.0,0.0001214,2]
[420805845,1776535839202,-1000.0,0.00012221,2]
[420805846,1776535839212,-150.0,0.00012253,2]
[420805847,1776535839221,-551.54584224,0.0001227,2]
[420805848,1776535839231,-551.54584224,0.0001227,2]
[420805849,1776535839242,-551.54584224,0.0001227,2]
[420805850,1776535839251,-551.54584224,0.0001227,2]
[420805851,1776535839260,-551.54584224,0.0001227,2]
[420805852,1776535839270,-551.54584224,0.0001227,2]
[420805853,1776535839279,-551.54584224,0.0001227,2]
[420805854,1776535839288,-551.54584224,0.0001227,2]
[420805855,1776535839298,-551.54584224,0.0001227,2]
[420805856,1776535839307,-551.54584224,0.0001227,2]
[420805857,1776535839317,-551.54584224,0.0001227,2]
[420805858,1776535839327,-551.54584224,0.0001227,2]
[420805859,1776535839336,-551.54584224,0.0001227,2]
[420805860,1776535839346,-551.54584224,0.0001227,2]
[420805861,1776535839355,-551.54584224,0.0001227,2]
[420805862,1776535839364,-551.54584224,0.0001227,2]
[420805863,1776535839373,-551.54584224,0.0001227,2]
[420805864,1776535839383,-551.54584224,0.0001227,2]
[420805865,1776535839393,-551.54584224,0.0001227,2]
[420805866,1776535839403,-551.54584224,0.0001227,2]
[420805867,1776535839416,-551.54584224,0.0001227,2]
[420805868,1776535839426,-551.54584224,0.0001227,2]
[420805869,1776535839437,-469357.78201455,0.00012271,2]
[420805870,1776535839447,-1000.0,0.00012351,2]
[420805871,1776535839457,-399.22,0.00012418,2]
[420805872,1776535839467,-151.0,0.000125,2]
[420805873,1776535839476,-406.271483,0.00012517,2]
[420805874,1776535839486,-151.0,0.000126,2]
[420805875,1776535839495,-393.0,0.000126,2]
[420805876,1776535839504,-2000.0,0.0001263,2]
[420805877,1776535839513,-150.0,0.0001269,2]
[420805878,1776535839523,-500.0,0.00012721,2]
[420805879,1776535839532,-2617.0,0.00012775,2]
[420805880,1776535839541,-151.0,0.000128,2]
[420805881,1776535839551,-1000.0,0.00012849,2]
[420805882,1776535839561,-492.0,0.00012849,2]
[420805883,1776535839571,-151.0,0.000129,2]
[420805884,1776535839581,-1000.0,0.000129,2]
[420805885,1776535839590,-1000.0,0.000129,2]
[420805886,1776535839599,-1000.0,0.000129,2]
[420805887,1776535839608,-1000.0,0.000129,2]
[420805888,1776535839618,-1000.0,0.000129,2]
[420805889,1776535839627,-1000.0,0.000129,2]
[420805890,1776535839637,-1000.0,0.000129,2]
[420805891,1776535839647,-1000.0,0.000129,2]
[420805892,1776535839658,-1000.0,0.000129,2]
[420805893,1776535839668,-1000.0,0.000129,2]
[420805895,1776535839678,-658.239248,0.000129,2]
[420805896,1776535839687,-151.0,0.0001295,2]
[420805897,1776535839697,-151.0,0.0001295,2]
[420805898,1776535839707,-316.89209614,0.00012968,2]
[420805899,1776535839717,-406.271483,0.00012985,2]
[420805901,1776535839726,-150.0,0.0001299,2]
[420805902,1776535839735,-902.1720341,0.00013,2]
[420805903,1776535839744,-4105.0,0.00013006,2]
[420805904,1776535839753,-2617.0,0.00013039,2]
[420805905,1776535839762,-2617.0,0.00013087,2]
[420805906,1776535839772,-151.0,0.000131,2]
[420805907,1776535839781,-2617.0,0.00013112,2]
[420805908,1776535839790,-200.0,0.00013151,3]
[420805909,1776535839800,-2500.0,0.00013178,2]
[420805910,1776535839809,-2617.0,0.00013192,2]
[420805911,1776535839818,-151.0,0.000132,2]
[420805912,1776535839828,-4105.0,0.00013206,2]
[420805913,1776535839838,-846.5295178,0.0001321,2]
[420805914,1776535839848,-229.59745358,0.00013233,14]
[420805915,1776535839857,-2617.0,0.00013259,2]
[420805916,1776535839866,-365.879124,0.00013271,2]
[420805917,1776535839876,-365.736365,0.00013274,2]
[420805918,1776535839885,-150.0,0.0001329,2]
[420805919,1776535839895,-4105.0,0.00013296,2]
[420805920,1776535839904,-800.0,0.00013335,2]
[420805921,1776535839913,-2617.0,0.00013338,2]
[420805922,1776535839923,-800.0,0.00013349,2]
[420805923,1776535839932,-800.0,0.00013352,2]
[420805924,1776535839941,-800.0,0.0001336,2]
[420805925,1776535839951,-2617.0,0.00013396,2]
[420805926,1776535839960,-151.0,0.000134,2]
[420805927,1776535839970,-151.0,0.000134,2]
[420805928,1776535839979,-151.0,0.000134,2]
[420805929,1776535839989,-800.0,0.00013406,2]
[420805930,1776535839998,-800.0,0.00013408,2]
[420805931,1776535840007,-800.0,0.0001342,2]
[420805932,1776535840017,-406.271483,0.00013453,2]
[420805933,1776535840026,-800.0,0.00013453,2]
[420805934,1776535840035,-4105.0,0.00013456,2]
[420805935,1776535840045,-800.0,0.0001346,2]
[420805936,1776535840054,-2617.0,0.00013471,2]
[420805939,1776535840228,-286.001,0.00013478,2]
[420805941,1776535840245,-188.10556855,0.00013478,2]
[420805942,1776535840255,-151.0,0.000135,2]
[420805943,1776535840265,-151.0,0.000135,2]
[420805944,1776535840274,-151.0,0.000135,2]
[420805945,1776535840284,-2617.0,0.0001352,2]
[420805946,1776535840293,-267.5525111,0.00013531,2]
[420805948,1776535840302,-2617.0,0.00013542,2]
[420805949,1776535840312,-2617.0,0.00013545,2]
[420805950,1776535840320,-800.0,0.00013566,2]
[420805951,1776535840330,-800.0,0.00013567,2]
[420805952,1776535840338,-800.0,0.00013574,2]
[420805953,1776535840348,-800.0,0.00013576,2]
[420805954,1776535840356,-2617.0,0.00013581,2]
[420805955,1776535840366,-150.0,0.0001359,2]
[420805956,1776535840375,-151.0,0.000136,2]
[420805957,1776535840384,-151.0,0.000136,2]
[420805958,1776535840393,-800.0,0.00013612,2]
[420805959,1776535840403,-800.0,0.00013616,2]
[420805960,1776535840412,-2617.0,0.00013637,2]
[420805961,1776535840421,-800.0,0.0001368,2]
[420805962,1776535840431,-1236.78804802,0.0001369,7]
[420805989,1776535846220,-590.94197382,0.0001227,2]
[420805990,1776535846230,-590.94197382,0.0001227,2]
[420805991,1776535846240,-183.20293848,0.0001227,2]
[420805992,1776535846253,-407.73903534,0.0001227,2]
[420805993,1776535846262,-590.94197382,0.0001227,2]
[420805994,1776535846272,-590.94197382,0.0001227,2]
[420805995,1776535846283,-590.94197382,0.0001227,2]
[420805996,1776535846292,-590.94197382,0.0001227,2]
[420805997,1776535846301,-9182.99655244,0.0001369,7]
[420805998,1776535846310,-4461.30886267,0.0001369,7]
[420806004,1776536746348,500.0,4.007e-05,2]
[420806005,1776536746382,500.0,4.007e-05,2]
[420806006,1776536746410,500.0,4.007e-05,2]
[420806007,1776536746439,500.0,4.007e-05,2]
[420806008,1776536746471,500.0,4.007e-05,2]
[420806010,1776537016675,900.0,4.006e-05,2]
[420806043,1776537032131,-164.424937,5.822e-05,2]
[420806045,1776537032141,-184.86744102,7.104e-05,2]
[420806047,1776537032150,-218.14358041,9.104e-05,2]
[420806049,1776537032159,-150.0,0.00011049,2]
[420806051,1776537032168,-251.41971979,0.00011104,2]
[420806053,1776537032177,-150.0,0.00011233,2]
[420806055,1776537032186,-1020.44615109,0.00011506,2]
[420806056,1776537032195,-259.0,0.00011507,3]
[420806058,1776537032204,-150.0,0.00011533,2]
[420806060,1776537032213,-151.0,0.00011686,2]
[420806062,1776537032222,-151.0,0.00011686,2]
[420806064,1776537032231,-151.0,0.00011686,2]
[420806066,1776537032240,-151.0,0.00011686,2]
[420806068,1776537032249,-151.0,0.00011686,2]
[420806070,1776537032259,-151.0,0.00011686,2]
[420806072,1776537032268,-151.0,0.00011686,2]
[420806074,1776537032277,-151.0,0.00011686,2]
[420806076,1776537032287,-151.0,0.00011686,2]
[420806078,1776537032297,-151.0,0.00011686,2]
[420806080,1776537032306,-151.0,0.00011686,2]
[420806082,1776537032315,-151.0,0.00011686,2]
[420806084,1776537032324,-151.0,0.00011686,2]
[420806086,1776537032333,-151.0,0.00011686,2]
[420806088,1776537032342,-151.0,0.00011686,2]
[420806090,1776537032351,-151.0,0.00011686,2]
[420806092,1776537032360,-151.0,0.00011686,2]
[420806094,1776537032369,-151.0,0.00011686,2]
[420806096,1776537032378,-151.0,0.00011686,2]
[420806098,1776537032387,-151.0,0.00011686,2]
[420806100,1776537032395,-3338.8506933,0.00011693,2]
[420806102,1776537032404,-150.0,0.00011728,2]
[420806104,1776537032413,-150.0,0.00011949,2]
[420806106,1776537032422,-441.0,0.00012064,2]
[420806108,1776537032431,-184.0,0.00012064,2]
[420806110,1776537032440,-150.0,0.00012133,2]
[420806112,1776537032449,-150.0,0.00012328,2]
[420806114,1776537032458,-150.0,0.00012628,2]
[420806116,1776537032467,-150.0,0.00012849,2]
[420806118,1776537032477,-150.0,0.00013033,2]
[420806120,1776537032487,-230.44,0.0001306,2]
[420806122,1776537032497,-284.69585918,0.00013104,2]
[420806124,1776537032506,-2617.0,0.00013118,2]
[420806126,1776537032515,-171.0,0.00013151,3]
[420806128,1776537032525,-170.45,0.00013158,2]
[420806130,1776537032534,-2617.0,0.00013236,2]
[420806132,1776537032543,-2617.0,0.00013316,2]
[420806134,1776537032552,-220.88,0.00013333,2]
[420806136,1776537032561,-531.70948161,0.0001335,2]
[420806137,1776537032570,-800.0,0.00013395,2]
[420806138,1776537032579,-2617.0,0.00013434,2]
[420806139,1776537032588,-846.529518,0.00013446,2]
[420806140,1776537032597,-150.0,0.00013449,2]
[420806141,1776537032607,-228.801,0.00013453,2]
[420806142,1776537032615,-500.0,0.00013473,2]
[420806143,1776537032625,-500.0,0.00013498,2]
[420806144,1776537032634,-160.97691467,0.00013498,2]
[420806145,1776537032643,-500.0,0.00013498,2]
[420806146,1776537032652,-500.0,0.00013498,2]
[420806147,1776537032661,-500.0,0.00013498,2]
[420806148,1776537032670,-500.0,0.00013498,2]
[420806149,1776537032679,-500.0,0.00013498,2]
[420806150,1776537032688,-500.0,0.00013498,2]
[420806151,1776537032697,-500.0,0.00013498,2]
[420806152,1776537032706,-500.0,0.00013498,2]
[420806153,1776537032717,-500.0,0.00013498,2]
[420806154,1776537032725,-500.0,0.00013498,2]
[420806155,1776537032734,-500.0,0.00013498,2]
[420806156,1776537032744,-500.0,0.00013498,2]
[420806157,1776537032754,-500.0,0.00013498,2]
[420806158,1776537032763,-500.0,0.00013498,2]
[420806159,1776537032772,-165.19456335,0.00013498,2]
[420806160,1776537032781,-500.0,0.00013498,2]
[420806161,1776537032791,-500.0,0.00013498,2]
[420806162,1776537032800,-500.0,0.00013498,2]
[420806163,1776537032809,-500.0,0.00013498,2]
[420806164,1776537032819,-500.0,0.00013498,2]
[420806165,1776537032828,-250.0,0.00013498,2]
[420806166,1776537032837,-198.32204597,0.00013498,2]
[420806167,1776537032847,-500.0,0.00013498,2]
[420806168,1776537032856,-500.0,0.00013498,2]
[420806169,1776537032865,-500.0,0.00013498,2]
[420806170,1776537032874,-368.78314835,0.00013498,2]
[420806171,1776537032883,-500.0,0.00013498,2]
[420806172,1776537032894,-500.0,0.00013498,2]
[420806173,1776537032902,-36822.06494621,0.00013499,2]
[420806235,1776537038636,-150.0,0.00013199,2]
[420806237,1776537038646,-2323.24019379,0.00013499,2]
[420806285,1776537040680,-1766.99999999,0.00013499,2]
[420806324,1776537043331,-4361.49394789,0.00013499,2]
[420806325,1776537043343,-652.75417611,0.00013499,2]
[420806326,1776537043354,-5790.0,0.00013499,2]
[420806327,1776537043445,-1037.38318,0.00013499,2]
[420806340,1776537046949,-3781.0,0.00013499,2]
[420806346,1776538232834,-172.68689628,0.00010859,2]
[420806347,1776538232844,-166.08490902,0.00010928,2]
[420806348,1776538232853,-181.0,0.00010959,3]
[420806349,1776538232862,-172.68689628,0.00011015,2]
[420806350,1776538232871,-150.0,0.00011115,2]
[420806351,1776538232881,-150.0,0.00011415,2]
[420806352,1776538232891,-15380.3736,0.00011453,2]
[420806353,1776538232901,-4666.9294334,0.000115,2]
[420806354,1776538232910,-150.0,0.0001156,2]
[420806355,1776538232919,-150.0,0.00011863,2]
[420806356,1776538232928,-150.0,0.00012163,2]
[420806357,1776538232938,-150.0,0.0001246,2]
[420806358,1776538232947,-192.0,0.00012603,3]
[420806359,1776538232957,-162.40776984,0.00012606,2]
[420806360,1776538232966,-441.0,0.00012614,2]
[420806361,1776538232976,-184.0,0.00012614,2]
[420806362,1776538232987,-325.2695583,0.00012726,2]
[420806363,1776538232997,-150.0,0.0001276,2]
[420806364,1776538233007,-195.98019264,0.00012928,2]
[420806365,1776538233016,-189.45,0.0001306,2]
[420806366,1776538233026,-338.41521638,0.00013498,2]
[420806367,1776538233035,-365.15867251,0.00013498,2]
[420806368,1776538233044,-183.04,0.00013548,2]
[420806369,1776538233054,-500.0,0.00013573,2]
[420806370,1776538233063,-500.0,0.00013573,2]
[420806371,1776538233072,-500.0,0.00013597,2]
[420806372,1776538233082,-374.3092387,0.00013597,2]
[420806373,1776538233091,-500.0,0.00013597,2]
[420806374,1776538233100,-500.0,0.00013597,2]
[420806375,1776538233110,-500.0,0.00013597,2]
[420806376,1776538233120,-540.63619434,0.00013597,2]
[420806377,1776538233129,-500.0,0.00013597,2]
[420806378,1776538233139,-500.0,0.00013597,2]
[420806379,1776538233148,-500.0,0.00013597,2]
[420806380,1776538233158,-500.0,0.00013597,2]
[420806381,1776538233167,-500.0,0.00013597,2]
[420806382,1776538233176,-500.0,0.00013597,2]
[420806383,1776538233186,-500.0,0.00013597,2]
[420806384,1776538233196,-250.0,0.00013597,2]
[420806385,1776538233205,-151.0,0.000136,2]
[420806386,1776538233215,-151.0,0.000136,2]
[420806387,1776538233226,-151.0,0.000136,2]
[420806388,1776538233237,-151.0,0.000136,2]
[420806389,1776538233246,-173.896225,0.00013624,2]
[420806390,1776538233256,-1352.30720467,0.0001365,2]
[420806391,1776538233266,-150.0,0.0001366,2]
[420806392,1776538233275,-172.83,0.0001366,2]
[420806393,1776538233284,-242.12,0.0001366,2]
[420806394,1776538233293,-265.84065957,0.00013673,2]
[420806395,1776538233303,-5958.47573779,0.0001369,7]
[420806396,1776538233312,-10419.78460046,0.0001369,7]
[420806397,1776538233321,-10419.78460046,0.0001369,7]
[420806398,1776538233331,-155.0,0.00013698,2]
[420806399,1776538233340,-151.0,0.00013698,2]
[420806400,1776538233349,-151.0,0.00013698,2]
[420806401,1776538233358,-151.0,0.00013698,2]
[420806402,1776538233368,-917.04,0.00013698,2]
[420806403,1776538233378,-917.04,0.00013698,2]
[420806404,1776538233388,-917.04,0.00013698,2]
[420806405,1776538233398,-917.04,0.00013698,2]
[420806406,1776538233408,-917.04,0.00013698,2]
[420806407,1776538233418,-917.04,0.00013698,2]
[420806408,1776538233427,-917.04,0.00013698,2]
[420806409,1776538233437,-917.04,0.00013698,2]
[420806410,1776538233446,-917.04,0.00013698,2]
[420806411,1776538233456,-917.04,0.00013698,2]
[420806412,1776538233465,-917.04,0.00013698,2]
[420806413,1776538233474,-917.04,0.00013698,2]
[420806414,1776538233484,-917.04,0.00013698,2]
[420806415,1776538233494,-917.04,0.00013698,2]
[420806416,1776538233503,-212.97239441,0.00013698,2]
[420806446,1776538238707,-274.77120284,0.00013698,2]
[420806453,1776538238762,-325.22879716,0.00013698,2]
[420806455,1776538238771,-378.99122484,0.00013698,2]
[420806471,1776538238921,-325.07638075,0.00013698,2]
[420806473,1776538238930,-665.7371825,0.00013698,2]
[420806655,1776538240867,-251.3028175,0.00013698,2]
[420806656,1776538240876,-917.04,0.00013698,2]
[420806657,1776538240885,-594.53218252,0.00013698,2]
[420806661,1776538241039,-322.50781748,0.00013698,2]
[420806663,1776538241048,-917.04,0.00013698,2]
[420806665,1776538241058,-917.04,0.00013698,2]
[420806667,1776538241067,-917.04,0.00013698,2]
[420806669,1776538241077,-917.04,0.00013698,2]
[420806671,1776538241086,-917.04,0.00013698,2]
[420806673,1776538241095,-917.23184016,0.00013698,2]
[420806675,1776538241104,-500.0,0.00013699,2]
[420806677,1776538241114,-180.0,0.00013699,2]
[420806679,1776538241123,-755.2556467,0.00013699,2]
[420806681,1776538241132,-3417.628394,0.00013699,2]
[420806683,1776538241141,-1000.0,0.00013699,2]
[420806685,1776538241150,-730.772143,0.00013699,2]
[420806687,1776538241159,-380.33,0.00013699,2]
[420806689,1776538241168,-380.33,0.00013699,2]
[420806691,1776538241177,-380.33,0.00013699,2]
[420806693,1776538241186,-742.456408,0.00013699,2]
[420806695,1776538241196,-380.33,0.00013699,2]
[420806697,1776538241205,-742.456408,0.00013699,2]
[420806699,1776538241214,-742.456408,0.00013699,2]
[420806701,1776538241224,-742.456408,0.00013699,2]
[420806703,1776538241233,-305.043278,0.00013699,2]
[420806705,1776538241243,-305.043278,0.00013699,2]
[420806707,1776538241252,-305.043278,0.00013699,2]
[420806709,1776538241261,-305.043278,0.00013699,2]
[420806711,1776538241270,-3328.32834779,0.00013699,2]
[420806855,1776538244607,-287.41003066,0.00013699,2]
[420806856,1776538244618,-1290.45146855,0.00013699,2]
[420806857,1776538244627,-4906.189847,0.00013699,2]
[420806858,1776538244636,-4906.189847,0.00013699,2]
[420806859,1776538244646,-4906.189847,0.00013699,2]
[420806860,1776538244655,-800.0,0.00013699,22]
[420806861,1776538244664,-450.89,0.00013699,22]
[420806862,1776538244674,-500.0,0.00013699,2]
[420806863,1776538244683,-500.0,0.00013699,2]
[420806864,1776538244692,-500.0,0.00013699,2]
[420806865,1776538244701,-500.0,0.00013699,2]
[420806866,1776538244710,-500.0,0.00013699,2]
[420806867,1776538244720,-500.0,0.00013699,2]
[420806868,1776538244729,-572.94010219,0.00013699,2]
[420806869,1776538244738,-500.0,0.00013699,2]
[420806870,1776538244748,-500.0,0.00013699,2]
[420806871,1776538244757,-500.0,0.00013699,2]
[420806872,1776538244766,-500.0,0.00013699,2]
[420806873,1776538244775,-500.0,0.00013699,2]
[420806874,1776538244784,-500.0,0.00013699,2]
[420806875,1776538244793,-159.73093964,0.00013699,2]
[420806876,1776538244802,-150.0,0.00013699,2]
[420806877,1776538244811,-500.0,0.00013699,2]
[420806878,1776538244820,-500.0,0.00013699,2]
[420806879,1776538244829,-187.95478331,0.00013699,2]
[420806880,1776538244841,-312.04521669,0.00013699,2]
[420806881,1776538244850,-187.95478331,0.00013699,2]
[420806904,1776538246713,-312.04521669,0.00013699,2]
[420806905,1776538246724,-500.0,0.00013699,2]
[420806906,1776538246735,-427.40635262,0.00013699,2]
[420806907,1776538246747,-72.59364738,0.00013699,2]
[420806908,1776538246757,-161.80241416,0.00013699,2]
[420806909,1776538246767,-500.0,0.00013699,2]
[420806910,1776538246777,-500.0,0.00013699,2]
[420806911,1776538246789,-167.22523675,0.00013699,2]
[420806912,1776538246800,-601.38984008,0.00013699,2]
[420806913,1776538246810,-500.0,0.00013699,2]
[420806914,1776538246820,-500.0,0.00013699,2]
[420806915,1776538246831,-220.0,0.00013699,2]
[420806916,1776538246841,-320.0,0.00013699,2]
[420806917,1776538246851,-500.0,0.00013699,2]
[420806918,1776538246860,-500.0,0.00013699,2]
[420806919,1776538246871,-218.2,0.00013699,2]
[420806920,1776538246881,-500.0,0.00013699,2]
[420806921,1776538246891,-500.0,0.00013699,2]
[420806922,1776538246901,-500.0,0.00013699,2]
[420806923,1776538246911,-500.0,0.00013699,2]
[420806924,1776538246922,-500.0,0.00013699,2]
[420806925,1776538246932,-290.78886163,0.00013699,2]
[420806926,1776538246947,-209.21113837,0.00013699,2]
[420806927,1776538246957,-500.0,0.00013699,2]
[420806928,1776538246967,-500.0,0.00013699,2]
[420806929,1776538246976,-679.24698996,0.00013699,2]
[420806930,1776538246986,-153.0,0.00013699,2]
[420806931,1776538246995,-153.0,0.00013699,2]
[420806932,1776538247005,-153.0,0.00013699,2]
[420806933,1776538247014,-153.0,0.00013699,2]
[420806934,1776538247023,-153.0,0.00013699,2]
[420806935,1776538247033,-153.0,0.00013699,2]
[420806936,1776538247042,-153.0,0.00013699,2]
[420806937,1776538247051,-153.0,0.00013699,2]
[420806938,1776538247062,-153.0,0.00013699,2]
[420806939,1776538247071,-153.0,0.00013699,2]
[420806940,1776538247081,-153.0,0.00013699,2]
[420806941,1776538247090,-153.0,0.00013699,2]
[420806942,1776538247099,-153.0,0.00013699,2]
[420806943,1776538247108,-153.0,0.00013699,2]
[420806944,1776538247118,-153.0,0.00013699,2]
[420806945,1776538247128,-153.0,0.00013699,2]
[420806946,1776538247137,-153.0,0.00013699,2]
[420806947,1776538247146,-153.0,0.00013699,2]
[420806948,1776538247155,-153.0,0.00013699,2]
[420806949,1776538247165,-202.8112468,0.00013699,2]
[420806950,1776538247174,-153.0,0.00013699,2]
[420806951,1776538247184,-153.0,0.00013699,2]
[420806952,1776538247193,-153.0,0.00013699,2]
[420806953,1776538247203,-153.0,0.00013699,2]
[420806954,1776538247212,-153.0,0.00013699,2]
[420806955,1776538247221,-153.0,0.00013699,2]
[420806956,1776538247230,-153.0,0.00013699,2]
[420806957,1776538247240,-153.65948333,0.00013699,2]
[420806958,1776538247249,-153.0,0.00013699,2]